fUST/lending_fUST_20250929
["ID","MTS","AMOUNT","RATE_DAILY","PERIOD"]
[388336988,1759103459955,-500.0,0.00028238,2]
[388336989,1759103459965,-500.0,0.00028238,2]
[388336990,1759103459975,-500.0,0.00028238,2]
[388336991,1759103459984,-500.0,0.00028238,2]
[388336992,1759103459993,-500.0,0.00028238,2]
[388336993,1759103460002,-500.0,0.00028238,2]
[388336994,1759103460011,-500.0,0.00028238,2]
[388336995,1759103460021,-500.0,0.00028238,2]
[388336996,1759103460029,-500.0,0.00028238,2]
[388336997,1759103460039,-250.0,0.00028238,2]
[388336998,1759103460047,-250.0,0.00028238,2]
[388336999,1759103460056,-250.0,0.00028238,2]
[388337000,1759103460065,-250.0,0.00028238,2]
[388337001,1759103460075,-250.0,0.00028238,2]
[388337002,1759103460084,-250.0,0.00028238,2]
[388337003,1759103460093,-250.0,0.00028238,2]
[388337004,1759103460102,-250.0,0.00028238,2]
[388337005,1759103460111,-250.0,0.00028238,2]
[388337006,1759103460120,-250.0,0.00028238,2]
[388337007,1759103460129,-250.0,0.00028238,2]
[388337008,1759103460138,-250.0,0.00028238,2]
[388337009,1759103460147,-151.0,0.00028238,2]
[388337010,1759103460155,-480.0,0.00028379,7]
[388337011,1759103460164,-785.37,0.00028379,7]
[388337012,1759103460174,-1605.3,0.00028379,7]
[388337013,1759103460183,-480.0,0.00028379,7]
[388337014,1759103460192,-3534.31,0.00028379,7]
[388337015,1759103460201,-1260.8,0.00028379,7]
[388337016,1759103460210,-480.0,0.00028382,7]
[388337017,1759103460219,-386.24447917,0.00028382,7]
[388337018,1759103460228,-480.0,0.00028382,7]
[388337019,1759103460237,-480.0,0.00028382,7]
[388337020,1759103460247,-480.0,0.00028382,7]
[388337021,1759103460256,-420.0,0.00028382,7]
[388337022,1759103460265,-480.0,0.00028382,7]
[388337023,1759103460274,-480.0,0.00028382,7]
[388337024,1759103460284,-480.0,0.00028382,7]
[388337025,1759103460293,-397.97272717,0.00028382,7]
[388337026,1759103460302,-480.0,0.00028382,7]
[388337027,1759103460311,-480.0,0.00028382,7]
[388337028,1759103460320,-480.0,0.00028382,7]
[388337029,1759103460329,-480.0,0.00028382,7]
[388337030,1759103460338,-520.0,0.00028382,3]
[388337031,1759103460347,-480.0,0.00028382,7]
[388337032,1759103460356,-480.0,0.00028382,7]
[388337033,1759103460365,-480.0,0.00028382,7]
[388337034,1759103460374,-200.0,0.00028382,7]
[388337035,1759103460383,-612.03,0.00028382,7]
[388337036,1759103460392,-940.35,0.00028382,7]
[388337037,1759103460401,-595.5,0.00028382,7]
[388337038,1759103460410,-610.79,0.00028382,7]
[388337039,1759103460419,-480.0,0.00028382,7]
[388337040,1759103460428,-480.0,0.00028382,7]
[388337041,1759103460437,-480.0,0.00028382,7]
[388337042,1759103460446,-480.0,0.00028382,7]
[388337043,1759103460456,-525.75,0.00028382,7]
[388337044,1759103460465,-480.0,0.00028382,7]
[388337045,1759103460474,-588.26,0.00028382,7]
[388337046,1759103460483,-480.0,0.00028382,7]
[388337047,1759103460492,-480.0,0.00028382,7]
[388337048,1759103460501,-1140.09,0.00028382,7]
[388337049,1759103460510,-895.46,0.00028382,7]
[388337050,1759103460519,-2831.62,0.00028382,7]
[388337051,1759103460528,-839.88,0.00028382,7]
[388337052,1759103460537,-986.35,0.00028382,7]
[388337053,1759103460547,-692.74,0.00028382,7]
[388337054,1759103460556,-549.15,0.00028382,7]
[388337055,1759103460565,-480.0,0.00028382,7]
[388337056,1759103460574,-480.0,0.00028382,7]
[388337057,1759103460583,-480.0,0.00028382,7]
[388337058,1759103460592,-506.52,0.00028382,7]
[388337059,1759103460601,-398.99142499,0.00028382,7]
[388337060,1759103460610,-3139.08,0.00028382,7]
[388337061,1759103460619,-919.0,0.00028382,7]
[388337062,1759103460628,-480.0,0.00028382,7]
[388337063,1759103460638,-828.94,0.00028382,7]
[388337064,1759103460647,-3618.93,0.00028382,7]
[388337065,1759103460656,-867.4,0.00028382,7]
[388337066,1759103460665,-480.0,0.00028445,7]
[388337067,1759103460674,-712.83,0.00028445,7]
[388337068,1759103460684,-480.0,0.00028445,7]
[388337069,1759103460693,-480.0,0.00028445,7]
[388337070,1759103460703,-907.14,0.00028445,7]
[388337071,1759103460713,-480.0,0.00028445,7]
[388337072,1759103460722,-755.48,0.00028445,7]
[388337073,1759103460731,-480.0,0.00028445,7]
[388337074,1759103460740,-480.0,0.00028445,7]
[388337075,1759103460749,-480.0,0.00028445,7]
[388337076,1759103460758,-480.0,0.00028445,7]
[388337077,1759103460767,-735.51,0.00028445,7]
[388337078,1759103460776,-480.0,0.00028445,7]
[388337079,1759103460785,-480.0,0.00028445,7]
[388337080,1759103460795,-769.41,0.00028445,7]
[388337082,1759103460935,-480.0,0.00028445,7]
[388337083,1759103460945,-480.0,0.00028445,7]
[388337084,1759103460954,-480.0,0.00028445,7]
[388337085,1759103460964,-314.53991259,0.00028445,7]
[388337086,1759103460973,-373.20867753,0.00028445,7]
[388337087,1759103460982,-480.0,0.00028445,7]
[388337088,1759103460990,-480.0,0.00028445,7]
[388337089,1759103461000,-480.0,0.00028445,7]
[388337090,1759103461009,-480.0,0.00028445,7]
[388337091,1759103461019,-965.45,0.00028445,7]
[388337092,1759103461028,-480.0,0.00028445,7]
[388337093,1759103461037,-480.0,0.00028445,7]
[388337094,1759103461046,-480.0,0.00028445,7]
[388337095,1759103461056,-480.0,0.00028445,7]
[388337096,1759103461065,-480.0,0.00028445,7]
[388337097,1759103461074,-550.87024388,0.00028445,7]
[388337098,1759103461083,-843.18,0.00028445,7]
[388337099,1759103461092,-480.0,0.00028445,7]
[388337100,1759103461102,-722.19,0.00028445,7]
[388337101,1759103461111,-596.31,0.00028445,7]
[388337102,1759103461120,-480.0,0.00028445,7]
[388337103,1759103461129,-605.36,0.00028445,7]
[388337104,1759103461138,-484.16,0.00028445,7]
[388337105,1759103461147,-480.0,0.00028445,7]
[388337106,1759103461156,-480.0,0.00028445,7]
[388337107,1759103461165,-480.0,0.00028445,7]
[388337108,1759103461174,-480.0,0.00028445,7]
[388337109,1759103461183,-480.0,0.00028445,7]
[388337110,1759103461192,-859.15,0.00028445,7]
[388337111,1759103461200,-480.0,0.00028445,7]
[388337112,1759103461209,-639.15,0.00028445,7]
[388337113,1759103461218,-480.0,0.00028445,7]
[388337114,1759103461227,-480.0,0.00028445,7]
[388337115,1759103461236,-835.0,0.00028445,7]
[388337116,1759103461245,-681.45,0.00028445,7]
[388337117,1759103461254,-480.0,0.00028445,7]
[388337118,1759103461263,-480.0,0.00028445,7]
[388337119,1759103461272,-480.0,0.00028445,7]
[388337120,1759103461281,-227.07429634,0.00028445,7]
[388337121,1759103461290,-822.08,0.00028445,7]
[388337122,1759103461299,-480.0,0.00028445,7]
[388337123,1759103461308,-480.0,0.00028445,7]
[388337124,1759103461317,-630.75,0.00028445,7]
[388337125,1759103461326,-741.73,0.00028445,7]
[388337126,1759103461335,-480.0,0.00028445,7]
[388337127,1759103461344,-500.53,0.00028445,7]
[388337128,1759103461353,-860.95,0.00028445,7]
[388337129,1759103461362,-641.72,0.00028493,7]
[388337130,1759103461370,-788.32,0.00028493,7]
[388337131,1759103461379,-480.0,0.00028493,7]
[388337132,1759103461388,-480.0,0.00028493,7]
[388337133,1759103461397,-497.05,0.00028493,7]
[388337134,1759103461407,-483.93707757,0.00028493,7]
[388337135,1759103461416,-480.0,0.00028493,7]
[388337136,1759103461425,-480.0,0.00028493,7]
[388337137,1759103461434,-822.62,0.00028493,7]
[388337138,1759103461443,-269.11923422,0.00028493,7]
[388337139,1759103461452,-480.0,0.00028493,7]
[388337140,1759103461461,-480.0,0.00028493,7]
[388337141,1759103461470,-680.72,0.00028493,7]
[388337142,1759103461479,-500.0,0.00028493,7]
[388337143,1759103461487,-924.85,0.00028493,7]
[388337144,1759103461497,-565.21,0.00028493,7]
[388337145,1759103461506,-480.0,0.00028493,7]
[388337146,1759103461515,-535.39,0.00028493,7]
[388337147,1759103461523,-499.82,0.00028493,7]
[388337148,1759103461532,-480.0,0.00028493,7]
[388337149,1759103461542,-480.0,0.00028493,7]
[388337150,1759103461550,-670.03,0.00028493,7]
[388337151,1759103461559,-480.0,0.00028493,7]
[388337152,1759103461569,-480.0,0.00028493,7]
[388337153,1759103461578,-480.0,0.00028493,7]
[388337154,1759103461587,-516.11,0.00028493,7]
[388337155,1759103461596,-480.0,0.00028493,7]
[388337156,1759103461606,-358.66159428,0.00028493,7]
[388337157,1759103461615,-480.0,0.00028493,7]
[388337158,1759103461624,-480.0,0.00028493,7]
[388337159,1759103461634,-626.56,0.00028493,7]
[388337160,1759103461643,-480.0,0.00028493,7]
[388337161,1759103461652,-515.84,0.00028493,7]
[388337162,1759103461661,-853.44,0.00028493,7]
[388337163,1759103461670,-616.75,0.00028493,7]
[388337164,1759103461679,-591.3,0.00028493,7]
[388337165,1759103461688,-480.0,0.00028493,7]
[388337166,1759103461697,-480.0,0.00028493,7]
[388337167,1759103461711,-480.0,0.00028493,7]
[388337168,1759103461721,-592.77,0.00028493,7]
[388337169,1759103461730,-480.0,0.00028493,7]
[388337170,1759103461739,-480.0,0.00028493,7]
[388337171,1759103461749,-513.59,0.00028493,7]
[388337172,1759103461761,-605.55,0.00028493,7]
[388337173,1759103461771,-480.0,0.00028493,7]
[388337174,1759103461780,-580.32,0.00028493,7]
[388337175,1759103461789,-1100.81,0.00028493,7]
[388337176,1759103461799,-662.87,0.00028493,7]
[388337177,1759103461807,-480.0,0.00028493,7]
[388337178,1759103461816,-480.0,0.00028493,7]
[388337179,1759103461825,-839.69,0.00028493,7]
[388337180,1759103461835,-480.0,0.00028493,7]
[388337181,1759103461844,-480.0,0.00028493,7]
[388337182,1759103461853,-480.0,0.00028493,7]
[388337183,1759103461863,-480.0,0.00028493,7]
[388337184,1759103461872,-480.0,0.00028493,7]
[388337185,1759103461882,-480.0,0.00028493,7]
[388337186,1759103461891,-480.0,0.00028493,7]
[388337187,1759103461905,-550.92,0.00028493,7]
[388337188,1759103461914,-873.96,0.00028493,7]
[388337189,1759103461923,-480.0,0.00028493,7]
[388337190,1759103461932,-480.0,0.00028493,7]
[388337191,1759103461942,-777.05,0.00028493,7]
[388337192,1759103461952,-784.66,0.00028493,7]
[388337193,1759103461961,-735.1,0.00028493,7]
[388337194,1759103461975,-993.78,0.00028493,7]
[388337195,1759103461984,-480.0,0.00028493,7]
[388337196,1759103461993,-1057.12,0.00028493,7]
[388337197,1759103462002,-589.58,0.00028493,7]
[388337198,1759103462011,-480.0,0.00028493,7]
[388337199,1759103462021,-1130.79,0.00028493,7]
[388337200,1759103462030,-480.0,0.00028493,7]
[388337201,1759103462039,-1262.46,0.00028493,7]
[388337202,1759103462048,-1564.71,0.00028493,7]
[388337203,1759103462057,-480.0,0.00028493,7]
[388337204,1759103462067,-480.0,0.00028493,7]
[388337205,1759103462077,-1337.31,0.00028493,7]
[388337206,1759103462086,-480.0,0.00028493,7]
[388337207,1759103462094,-1086.26,0.00028493,7]
[388337208,1759103462104,-589.16,0.00028493,7]
[388337209,1759103462113,-480.0,0.00028493,7]
[388337210,1759103462122,-480.0,0.00028493,7]
[388337211,1759103462132,-514.97,0.00028493,7]
[388337212,1759103462141,-468.28151703,0.00028493,7]
[388337213,1759103462150,-771.3,0.00028493,7]
[388337214,1759103462159,-2949.58,0.00028493,7]
[388337215,1759103462167,-480.0,0.00028493,7]
[388337216,1759103462176,-480.0,0.00028493,7]
[388337217,1759103462185,-1918.75,0.00028493,7]
[388337218,1759103462195,-480.0,0.00028493,7]
[388337219,1759103462204,-491.49509148,0.00028493,7]
[388337220,1759103462213,-480.0,0.00028493,7]
[388337221,1759103462223,-222.93906173,0.00028493,7]
[388337222,1759103462232,-1564.8,0.00028493,7]
[388337223,1759103462241,-480.0,0.00028493,7]
[388337224,1759103462250,-480.0,0.00028493,7]
[388337225,1759103462259,-480.0,0.00028493,7]
[388337226,1759103462268,-540.81,0.00028493,7]
[388337227,1759103462278,-480.0,0.00028493,7]
[388337228,1759103462287,-518.24,0.00028493,7]
[388337229,1759103462297,-500.0,0.00028493,7]
[388337230,1759103462307,-808.67,0.00028493,7]
[388337231,1759103462316,-845.77,0.00028493,7]
[388337232,1759103462325,-767.94,0.00028493,7]
[388337233,1759103462334,-480.0,0.00028493,7]
[388337234,1759103462343,-695.12,0.00028493,7]
[388337235,1759103462352,-480.0,0.00028493,7]
[388337236,1759103462361,-531.24,0.00028493,7]
[388337237,1759103462370,-1385.84,0.00028493,7]
[388337238,1759103462379,-901.97,0.00028493,7]
[388337239,1759103462388,-480.0,0.00028493,7]
[388337240,1759103462397,-480.0,0.00028493,7]
[388337241,1759103462413,-3317.91,0.00028493,7]
[388337242,1759103462421,-480.0,0.00028493,7]
[388337243,1759103462430,-785.05,0.00028493,7]
[388337244,1759103462440,-1474.69,0.00028493,7]
[388337245,1759103462449,-480.0,0.00028493,7]
[388337246,1759103462458,-1329.27,0.00028493,7]
[388337247,1759103462467,-1430.69,0.00028493,7]
[388337248,1759103462476,-934.42,0.00028493,7]
[388337249,1759103462485,-932.68,0.00028493,7]
[388337250,1759103462494,-689.5,0.00028493,7]
[388337251,1759103462504,-571.2,0.00028493,7]
[388337252,1759103462513,-480.0,0.00028493,7]
[388337253,1759103462522,-844.72,0.00028493,7]
[388337254,1759103462531,-480.0,0.00028493,7]
[388337255,1759103462540,-695.38,0.00028493,7]
[388337256,1759103462549,-280.49699873,0.00028493,7]
[388337257,1759103462558,-480.0,0.00028493,7]
[388337258,1759103462567,-480.0,0.00028493,7]
[388337259,1759103462576,-480.0,0.00028493,7]
[388337260,1759103462585,-1055.79,0.00028493,7]
[388337261,1759103462594,-2117.59,0.00028493,7]
[388337262,1759103462603,-480.0,0.00028493,7]
[388337263,1759103462613,-480.0,0.00028493,7]
[388337264,1759103462622,-808.3,0.00028493,7]
[388337265,1759103462630,-1136.38,0.00028493,7]
[388337266,1759103462639,-480.0,0.00028493,7]
[388337267,1759103462648,-1374.0,0.00028493,7]
[388337268,1759103462657,-651.29,0.00028493,7]
[388337269,1759103462665,-480.0,0.00028493,7]
[388337270,1759103462675,-1146.02,0.00028493,7]
[388337271,1759103462683,-480.0,0.00028493,7]
[388337272,1759103462692,-480.0,0.00028493,7]
[388337273,1759103462701,-726.35,0.00028493,7]
[388337274,1759103462710,-812.09,0.00028493,7]
[388337275,1759103462719,-2168.38,0.00028493,7]
[388337276,1759103462728,-480.0,0.00028493,7]
[388337277,1759103462737,-1354.28,0.00028493,7]
[388337278,1759103462746,-2804.71,0.00028493,7]
[388337279,1759103462754,-598.32,0.00028493,7]
[388337280,1759103462762,-579.15,0.00028493,7]
[388337281,1759103462771,-480.0,0.00028493,7]
[388337282,1759103462780,-480.0,0.00028493,7]
[388337283,1759103462788,-2231.62,0.00028493,7]
[388337284,1759103462797,-814.75,0.00028493,7]
[388337285,1759103462806,-973.37,0.00028493,7]
[388337286,1759103462816,-480.0,0.00028493,7]
[388337287,1759103462824,-480.0,0.00028493,7]
[388337288,1759103462833,-728.76,0.00028493,7]
[388337289,1759103462842,-516.5,0.00028493,7]
[388337290,1759103462851,-780.32,0.00028493,7]
[388337291,1759103462860,-602.47,0.00028493,7]
[388337292,1759103462868,-603.43966978,0.00028493,7]
[388337293,1759103462877,-512.45,0.00028493,7]
[388337294,1759103462887,-1037.42,0.00028493,7]
[388337295,1759103462900,-1880.3,0.00028493,7]
[388337296,1759103462910,-849.93,0.00028493,7]
[388337297,1759103463033,-1247.97,0.00028493,7]
[388337298,1759103463043,-898.56,0.00028493,7]
[388337299,1759103463052,-480.0,0.00028493,7]
[388337300,1759103463061,-480.0,0.00028493,7]
[388337301,1759103463070,-480.0,0.00028493,7]
[388337302,1759103463080,-480.0,0.00028493,7]
[388337303,1759103463089,-678.02,0.00028493,7]
[388337304,1759103463099,-1778.28,0.00028493,7]
[388337305,1759103463108,-2379.83,0.00028493,7]
[388337306,1759103463118,-5954.8,0.00028493,3]
[388337307,1759103463127,-794.46,0.00028493,7]
[388337308,1759103463136,-480.0,0.00028493,7]
[388337309,1759103463145,-480.0,0.00028493,7]
[388337310,1759103463154,-1055.28,0.00028493,7]
[388337311,1759103463163,-1175.56,0.00028493,7]
[388337312,1759103463172,-480.0,0.00028493,7]
[388337313,1759103463181,-782.33,0.00028493,7]
[388337314,1759103463190,-798.06,0.00028493,7]
[388337315,1759103463199,-480.0,0.00028493,7]
[388337316,1759103463208,-480.0,0.00028493,7]
[388337317,1759103463217,-561.5,0.00028493,7]
[388337318,1759103463226,-567.64,0.00028493,7]
[388337319,1759103463235,-2153.55,0.00028493,7]
[388337320,1759103463243,-529.57,0.00028493,7]
[388337321,1759103463252,-786.13,0.00028493,7]
[388337322,1759103463261,-480.0,0.00028493,7]
[388337323,1759103463270,-302.69629783,0.00028493,7]
[388337324,1759103463279,-1029.38,0.00028493,7]
[388337325,1759103463288,-2515.29,0.00028493,7]
[388337326,1759103463297,-3871.47,0.00028493,7]
[388337327,1759103463306,-3379.94,0.00028493,7]
[388337328,1759103463315,-914.13,0.00028493,7]
[388337329,1759103463324,-480.0,0.00028493,7]
[388337330,1759103463333,-480.0,0.00028493,7]
[388337331,1759103463342,-480.0,0.00028493,7]
[388337332,1759103463351,-480.0,0.00028493,7]
[388337333,1759103463360,-480.0,0.00028493,7]
[388337334,1759103463369,-579.59,0.00028493,7]
[388337335,1759103463378,-1006.61,0.00028493,7]
[388337336,1759103463387,-220.79,0.00028493,7]
[388337337,1759103463396,-856.16,0.00028493,7]
[388337338,1759103463406,-480.0,0.00028493,7]
[388337339,1759103463415,-4097.81,0.00028493,7]
[388337340,1759103463424,-856.58,0.00028493,7]
[388337341,1759103463433,-480.0,0.00028493,7]
[388337342,1759103463442,-633.61,0.00028493,7]
[388337343,1759103463452,-480.0,0.00028493,7]
[388337344,1759103463461,-520.78,0.00028493,7]
[388337345,1759103463471,-679.56,0.00028493,7]
[388337346,1759103463480,-1848.01,0.00028493,7]
[388337347,1759103463489,-511.0,0.00028493,7]
[388337348,1759103463498,-809.94,0.00028493,7]
[388337349,1759103463507,-480.0,0.00028493,7]
[388337350,1759103463515,-17932.03,0.00028493,7]
[388337351,1759103463525,-1780.76,0.00028493,7]
[388337352,1759103463534,-480.0,0.00028493,7]
[388337353,1759103463543,-1480.41,0.00028493,7]
[388337354,1759103463553,-480.0,0.00028493,7]
[388337355,1759103463562,-480.0,0.00028493,7]
[388337356,1759103463571,-480.0,0.00028493,7]
[388337357,1759103463580,-480.0,0.00028493,7]
[388337358,1759103463589,-1205.36,0.00028493,7]
[388337359,1759103463599,-931.56,0.00028493,7]
[388337360,1759103463608,-480.0,0.00028493,7]
[388337361,1759103463617,-504.55,0.00028493,7]
[388337362,1759103463626,-744.16,0.00028493,7]
[388337363,1759103463635,-480.0,0.00028493,7]
[388337364,1759103463644,-670.0,0.00028493,7]
[388337365,1759103463654,-480.0,0.00028493,7]
[388337366,1759103463663,-480.0,0.00028493,7]
[388337367,1759103463672,-480.0,0.00028493,7]
[388337368,1759103463681,-891.42,0.00028493,7]
[388337369,1759103463690,-822.23,0.00028493,7]
[388337370,1759103463699,-1145.19,0.00028493,7]
[388337371,1759103463708,-913.52,0.00028493,7]
[388337372,1759103463717,-480.0,0.00028493,7]
[388337373,1759103463726,-732.15,0.00028493,7]
[388337374,1759103463735,-480.0,0.00028493,7]
[388337375,1759103463745,-710.86,0.00028493,7]
[388337376,1759103463754,-5066.22,0.00028493,7]
[388337377,1759103463763,-8442.79,0.00028493,7]
[388337378,1759103463772,-860.51,0.00028493,7]
[388337379,1759103463781,-1010.12,0.00028493,7]
[388337380,1759103463790,-487.25,0.00028493,7]
[388337381,1759103463799,-1363.68,0.00028493,7]
[388337382,1759103463808,-1631.21,0.00028493,7]
[388337383,1759103463817,-745.45,0.00028493,7]
[388337384,1759103463827,-480.0,0.00028493,7]
[388337385,1759103463836,-480.0,0.00028493,7]
[388337386,1759103463846,-1420.83,0.00028493,7]
[388337387,1759103463855,-4153.65,0.00028493,7]
[388337388,1759103463863,-1332.06,0.00028493,7]
[388337389,1759103463873,-1051.49,0.00028493,7]
[388337390,1759103463882,-480.0,0.00028493,7]
[388337391,1759103463891,-480.0,0.00028493,7]
[388337392,1759103463903,-924.01,0.00028493,7]
[388337393,1759103463912,-480.0,0.00028493,7]
[388337394,1759103463922,-480.0,0.00028493,7]
[388337395,1759103463931,-1604.48,0.00028493,7]
[388337396,1759103463942,-480.0,0.00028493,7]
[388337397,1759103463959,-1972.12,0.00028493,7]
[388337398,1759103463977,-480.0,0.00028493,7]
[388337399,1759103463992,-480.0,0.00028493,7]
[388337400,1759103464010,-480.0,0.00028493,7]
[388337401,1759103464028,-2285.6,0.00028493,7]
[388337402,1759103464045,-586.8,0.00028493,7]
[388337403,1759103464061,-480.0,0.00028493,7]
[388337404,1759103464077,-480.0,0.00028493,7]
[388337405,1759103464092,-4195.97,0.00028493,7]
[388337406,1759103464107,-620.61811084,0.00028493,7]
[388337407,1759103464123,-2449.48,0.00028493,7]
[388337408,1759103464140,-165.28832378,0.00028493,7]
[388337409,1759103464158,-480.0,0.00028493,7]
[388337410,1759103464170,-480.0,0.00028493,7]
[388337411,1759103464183,-778.87,0.00028493,7]
[388337412,1759103464201,-4478.81,0.00028493,7]
[388337413,1759103464214,-527.49,0.00028493,7]
[388337414,1759103464229,-910.42,0.00028493,7]
[388337415,1759103464241,-591.15,0.00028493,7]
[388337416,1759103464254,-480.0,0.00028493,7]
[388337417,1759103464268,-917.77,0.00028493,7]
[388337418,1759103464281,-480.0,0.00028493,7]
[388337419,1759103464294,-480.0,0.00028493,7]
[388337420,1759103464308,-781.16,0.00028493,7]
[388337421,1759103464321,-1171.37,0.00028493,7]
[388337422,1759103464337,-480.0,0.00028493,7]
[388337423,1759103464350,-2238.12,0.00028493,7]
[388337424,1759103464363,-751.04,0.00028493,7]
[388337425,1759103464376,-1674.84,0.00028493,7]
[388337426,1759103464390,-907.39,0.00028493,7]
[388337427,1759103464404,-581.32900617,0.00028493,7]
[388337428,1759103464417,-804.33,0.00028493,7]
[388337429,1759103464431,-515.97,0.00028493,7]
[388337430,1759103464444,-355.95055591,0.00028493,7]
[388337431,1759103464457,-550.6,0.00028493,7]
[388337432,1759103464470,-1087.13,0.00028493,7]
[388337433,1759103464484,-480.0,0.00028493,7]
[388337434,1759103464497,-1024.34,0.00028493,7]
[388337435,1759103464510,-2128.47,0.00028493,7]
[388337436,1759103464523,-4005.13,0.00028493,7]
[388337437,1759103464537,-480.0,0.00028493,7]
[388337438,1759103464550,-384.09131794,0.00028493,7]
[388337439,1759103464563,-814.41,0.00028493,7]
[388337440,1759103464576,-2378.25,0.00028493,7]
[388337441,1759103464589,-883.22,0.00028493,7]
[388337442,1759103464603,-946.93,0.00028493,7]
[388337443,1759103464617,-480.0,0.00028493,7]
[388337444,1759103464631,-480.0,0.00028493,7]
[388337445,1759103464645,-480.0,0.00028493,7]
[388337446,1759103464658,-896.6,0.00028493,7]
[388337447,1759103464671,-621.58,0.00028493,7]
[388337448,1759103464685,-960.54,0.00028493,7]
[388337449,1759103464698,-1440.77,0.00028493,7]
[388337450,1759103464713,-1114.7,0.00028493,7]
[388337451,1759103464726,-837.34,0.00028493,7]
[388337452,1759103464739,-746.28164466,0.00028493,7]
[388337453,1759103464928,-165.93561008,0.00025962,2]
[388337454,1759103464938,-480.0,0.00027397,7]
[388337455,1759103464948,-480.0,0.00027397,7]
[388337456,1759103464957,-480.0,0.00027671,7]
[388337457,1759103464966,-480.0,0.00027671,7]
[388337458,1759103464977,-480.0,0.00027945,7]
[388337459,1759103464987,-480.0,0.00027945,7]
[388337460,1759103464997,-480.0,0.00028219,7]
[388337461,1759103465006,-480.0,0.00028219,7]
[388337462,1759103465016,-372.30835534,0.00028493,7]
[388337463,1759103465025,-571.02349847,0.00028493,7]
[388337464,1759103465034,-480.0,0.00028493,7]
[388337465,1759103465044,-2042.54,0.00028493,7]
[388337466,1759103465053,-480.0,0.00028493,7]
[388337467,1759103465062,-630.92,0.00028493,7]
[388337468,1759103465071,-547.00103618,0.00028493,7]
[388337469,1759103465081,-3176.76896382,0.00028493,7]
[388337470,1759103465091,-479.38103603,0.00028493,7]
[388337471,1759103466007,-480.0,0.00027397,7]
[388337472,1759103466016,-98.33999997,0.00027397,7]
[388337473,1759103466470,1267.01224784,0.00025205,2]
[388337477,1759103529805,200.0,0.00025192,15]
[388337478,1759103548156,243.0,0.00028,120]
[388337544,1759104160982,223.794692,0.00024941,2]
[388337545,1759104190570,4615.35631047,0.00025205,2]
[388337551,1759104223053,2340.99586969,0.00024957,2]
[388337552,1759104223075,10000.01,0.00024957,2]
[388337553,1759104223097,10000.01,0.00024957,2]
[388337554,1759104223117,6732.55134591,0.00024957,2]
[388337555,1759104234082,666.0,0.00025035,2]
[388337568,1759104269141,19558.0,0.00033848,60]
[388337591,1759104360847,1350.767996,0.00024842,2]
[388337619,1759104466017,185.8005778,0.00025156,2]
[388337621,1759104480171,153.41,0.00018182,2]
[388337638,1759104526968,911.48008029,0.00024811,2]
[388337639,1759104526991,537.11160241,0.00024811,2]